bitfinex/quotes_BTCUSD_20220109
["timestamp","ask_amount","ask_price","bid_price","bid_amount"]
[1641717562447,0.0011851,41770.0,41769.0,0.11974645]
[1641717563247,0.0011851,41770.0,41769.0,0.14574645]
[1641717564448,0.0011851,41770.0,41769.0,0.11974645]
[1641717565287,0.0011851,41770.0,41769.0,0.14874645]
[1641717567192,0.0011851,41770.0,41769.0,0.14374645]
[1641717567589,0.00485796,41770.0,41769.0,0.14374645]
[1641717568440,0.00485796,41770.0,41769.0,0.11974645]
[1641717568847,0.00485796,41770.0,41769.0,0.16974645]
[1641717569242,0.00485796,41770.0,41769.0,0.19074645]
[1641717570543,0.00485796,41770.0,41769.0,0.16974645]
[1641717571343,0.00485796,41770.0,41769.0,0.19074645]
[1641717572591,0.00485796,41770.0,41769.0,0.16974645]
[1641717572793,0.00485796,41770.0,41769.0,0.11974645]
[1641717573191,0.00485796,41770.0,41769.0,0.14274645]
[1641717574396,0.00485796,41770.0,41769.0,0.11974645]
[1641717575193,0.00485796,41770.0,41769.0,0.14574645]
[1641717576443,0.00485796,41770.0,41769.0,0.11974645]
[1641717577244,0.00485796,41770.0,41769.0,0.14374645]
[1641717578447,0.00485796,41770.0,41769.0,0.11974645]
[1641717579346,0.00485796,41770.0,41769.0,0.14774645]
[1641717581192,0.00485796,41770.0,41769.0,0.17374645]
[1641717583192,0.00485796,41770.0,41769.0,0.14574645]
[1641717584641,0.00485796,41770.0,41769.0,0.11974645]
[1641717585042,0.00485796,41770.0,41769.0,0.16974645]
[1641717585243,0.00485796,41770.0,41769.0,0.24174645]
[1641717586542,0.00485796,41770.0,41769.0,0.16974645]
[1641717587191,0.00485796,41770.0,41769.0,0.19774645]
[1641717587391,0.00485796,41770.0,41769.0,0.14774645]
[1641717590594,0.00485796,41770.0,41769.0,0.11974645]
[1641717591250,0.00485796,41770.0,41769.0,0.14674645]
[1641717592443,0.31613417,41770.0,41769.0,0.11974645]
[1641717592645,0.31613417,41770.0,41765.0,0.00038688]
[1641717592646,0.32661617,41770.0,41765.0,0.00038688]
[1641717592842,1.03555372,41770.0,41765.0,0.00038688]
[1641717593045,0.010482,41769.0,41765.0,0.00038688]
[1641717593243,0.28439601,41767.0,41765.0,0.04138688]
[1641717593442,0.71814,41766.0,41765.0,0.0413869]
[1641717594443,0.71814,41766.0,41765.0,0.04138693]
[1641717594691,1.00143567,41766.0,41765.0,0.04138693]
[1641717594889,0.71314,41766.0,41765.0,0.04138693]
[1641717595090,0.71314,41766.0,41765.0,0.00038693]
[1641717595289,0.71714,41766.0,41765.0,0.04338693]
[1641717595490,0.71714,41766.0,41765.0,0.04377389]
[1641717595692,0.71714,41766.0,41765.0,0.04338696]
[1641717595891,1.00671722,41766.0,41765.0,0.04338696]
[1641717596490,1.01271576,41766.0,41765.0,0.00038696]
[1641717596691,0.71314,41766.0,41765.0,0.00038696]
[1641717597291,0.71314,41766.0,41765.0,0.03838696]
[1641717597292,0.72214,41766.0,41765.0,0.03838696]
[1641717597494,0.72700236,41766.0,41765.0,0.03838696]
[1641717597692,0.72700236,41766.0,41765.0,0.03877392]
[1641717597893,0.72700236,41766.0,41765.0,0.03838696]
[1641717598554,0.71800236,41766.0,41765.0,0.00038696]
[1641717598753,0.71800236,41766.0,41765.0,0.00077392]
[1641717598956,0.71800236,41766.0,41765.0,0.00038696]
[1641717599354,0.72500236,41766.0,41765.0,0.03338696]
[1641717599954,0.72500236,41766.0,41765.0,0.03338695]
[1641717600556,0.71800236,41766.0,41765.0,0.00038695]
[1641717600959,0.71800236,41766.0,41765.0,0.0007739]
[1641717601153,0.71800236,41766.0,41765.0,0.00038695]
[1641717601356,0.71800236,41766.0,41765.0,0.03338695]
[1641717602600,0.71800236,41766.0,41765.0,0.00038695]
[1641717603398,0.71800236,41766.0,41765.0,0.04538695]
[1641717604597,0.71800236,41766.0,41765.0,0.00038695]
[1641717605403,0.71800236,41766.0,41765.0,0.0497739]
[1641717605697,0.71800236,41766.0,41765.0,0.04938695]
[1641717606541,0.71800236,41766.0,41765.0,0.00038695]
[1641717607343,0.71800236,41766.0,41765.0,0.0457739]
[1641717607543,0.71800236,41766.0,41765.0,0.04538695]
[1641717607946,0.71800236,41766.0,41765.0,0.0457739]
[1641717608343,0.71800236,41766.0,41764.0,0.0205416]
[1641717608845,0.71800236,41766.0,41765.0,0.00037041]
[1641717609444,0.72500236,41766.0,41765.0,0.00037041]
[1641717609708,0.70000236,41766.0,41765.0,0.00037041]
[1641717610006,1.04619672,41766.0,41764.0,0.0605416]
[1641717610210,0.27745981,41765.0,41764.0,0.04]
[1641717610407,0.28794181,41765.0,41764.0,0.04]
[1641717610607,0.28794181,41765.0,41757.0,0.649392]
[1641717610608,0.31430096,41765.0,41757.0,0.649394]
[1641717610805,0.30381896,41765.0,41752.0,0.50970369]
[1641717611208,0.25079891,41755.0,41752.0,0.78801768]
[1641717611411,0.38466814,41754.0,41753.0,0.44483885]
[1641717611707,0.38466814,41754.0,41753.0,0.55473385]
[1641717611907,0.38466814,41754.0,41753.0,0.60473385]
[1641717612106,0.3044,41762.0,41753.0,0.60473385]
[1641717612307,0.059891,41761.0,41753.0,0.60473385]
[1641717612509,0.3044,41762.0,41754.0,0.34029101]
[1641717612510,0.00548763,41760.0,41754.0,0.34029101]
[1641717612708,0.00548763,41760.0,41754.0,0.45018201]
[1641717612908,0.00548763,41760.0,41754.0,0.16978049]
[1641717613308,0.00548763,41760.0,41756.0,0.0003986]
[1641717613550,0.00548763,41760.0,41757.0,0.11978312]
[1641717613747,0.04411926,41770.0,41758.0,0.384944]
[1641717613953,0.00122801,41766.0,41757.0,0.05989112]
[1641717614247,0.37719935,41762.0,41759.0,0.3174235]
[1641717614450,0.37719935,41762.0,41760.0,0.0003985]
[1641717614648,0.37719935,41762.0,41760.0,0.1201751]
[1641717614847,0.04411934,41770.0,41760.0,0.1201751]
[1641717615047,0.04411934,41770.0,41761.0,0.059887]
[1641717615247,0.728782,41769.0,41760.0,0.0003985]
[1641717615447,0.002,41762.0,41760.0,0.00079699]
[1641717615651,0.002,41762.0,41760.0,0.12016612]
[1641717615846,0.002,41762.0,41761.0,0.28917657]
[1641717616047,0.002,41762.0,41760.0,0.12016612]
[1641717616649,0.39019846,41766.0,41760.0,0.12016615]
[1641717616848,0.39019846,41766.0,41762.0,0.05988218]
[1641717617052,0.33031546,41766.0,41760.0,0.06028252]
[1641717617303,0.33431546,41766.0,41760.0,0.06028252]
[1641717617504,0.0048623,41761.0,41760.0,0.06028252]
[1641717617703,0.0048623,41761.0,41760.0,0.06066362]
[1641717617904,0.0048623,41761.0,41760.0,0.0602651]
[1641717618905,0.0048623,41761.0,41760.0,0.12015255]
[1641717619909,0.2448623,41761.0,41760.0,0.12015255]
[1641717621546,0.2448623,41761.0,41760.0,0.06026513]
[1641717621946,0.2448623,41761.0,41760.0,0.00038113]
[1641717622151,0.2448623,41761.0,41760.0,0.00038188]
[1641717623151,0.2448623,41761.0,41760.0,0.00076376]
[1641717623348,0.2518623,41761.0,41760.0,0.00038188]
[1641717624550,0.2448623,41761.0,41760.0,0.00038188]
[1641717625396,0.2458623,41761.0,41760.0,0.00076376]
[1641717625597,0.2458623,41761.0,41760.0,0.00038188]
[1641717626497,0.2448623,41761.0,41760.0,0.00076372]
[1641717626697,0.2448623,41761.0,41760.0,0.00038184]
[1641717627296,0.2518623,41761.0,41760.0,0.00038184]
[1641717628559,0.2448623,41761.0,41758.0,0.05527384]
[1641717628759,0.2448623,41761.0,41760.0,0.00038184]
[1641717629358,0.2488623,41761.0,41760.0,0.00038184]
[1641717630060,0.2488623,41761.0,41759.0,0.05988888]
[1641717630259,0.2488623,41761.0,41760.0,0.00086609]
[1641717630660,0.2448623,41761.0,41760.0,0.00086609]
[1641717631460,0.2518623,41761.0,41760.0,0.00086609]
[1641717632704,0.2448623,41761.0,41760.0,0.00086609]
[1641717633305,0.2518623,41761.0,41760.0,0.00086609]
[1641717634507,0.2448623,41761.0,41760.0,0.00086609]
[1641717635309,0.2518623,41761.0,41760.0,0.00086609]
[1641717635711,0.3117533,41761.0,41760.0,0.00086609]
[1641717636152,0.3222353,41761.0,41760.0,0.00086609]
[1641717636550,0.3152353,41761.0,41760.0,0.00086609]
[1641717637450,0.3352353,41761.0,41760.0,0.00086609]
[1641717638051,0.3302353,41761.0,41760.0,0.00086609]
[1641717638650,0.3102353,41761.0,41760.0,0.00086609]
[1641717639450,0.3202353,41761.0,41760.0,0.00086609]
[1641717639704,0.6702353,41761.0,41760.0,0.00086609]
[1641717640499,0.3202353,41761.0,41760.0,0.00086609]
[1641717640699,0.6602353,41761.0,41760.0,0.00086609]
[1641717640900,0.7080353,41761.0,41760.0,0.00086609]
[1641717641099,0.8080353,41761.0,41760.0,0.00086609]
[1641717641299,1.5263353,41761.0,41760.0,0.00086609]
[1641717641498,1.5373353,41761.0,41760.0,0.00086609]
[1641717641899,1.6373353,41761.0,41760.0,0.00086609]
[1641717642502,1.64139075,41761.0,41760.0,0.00086609]
[1641717642700,1.63039075,41761.0,41760.0,0.00086609]
[1641717643548,1.64239075,41761.0,41760.0,0.00086609]
[1641717644150,3.31986525,41761.0,41742.0,0.000696]
[1641717644351,0.00121923,41746.0,41742.0,0.000696]
[1641717644551,0.0478,41745.0,41742.0,0.000696]
[1641717644750,0.09391,41746.0,41742.0,0.000696]
[1641717645150,0.28369286,41745.0,41742.0,0.000696]
[1641717645349,0.65317573,41745.0,41742.0,0.000696]
[1641717645750,0.070399,41744.0,41742.0,0.000696]
[1641717646450,0.65317573,41745.0,41742.0,0.06061]
[1641717646650,0.28369286,41745.0,41742.0,0.06061]
[1641717647304,0.28369286,41745.0,41742.0,0.000696]
[1641717647505,0.00405506,41744.0,41742.0,0.000696]
[1641717647708,0.00405506,41744.0,41742.0,0.060608]
[1641717647907,0.00405506,41744.0,41742.0,0.000696]
[1641717648706,0.00405506,41744.0,41742.0,0.00108043]
[1641717649308,0.06397206,41744.0,41742.0,0.00108043]
[1641717649508,0.010482,41743.0,41742.0,0.00108043]
[1641717649708,0.07397206,41744.0,41742.0,0.00146486]
[1641717649908,0.31397206,41744.0,41742.0,0.00108043]
[1641717650108,0.010482,41743.0,41742.0,0.00108043]
[1641717650310,0.31397206,41744.0,41742.0,0.00108043]
[1641717650511,0.010482,41743.0,41742.0,0.00108043]
[1641717650947,0.30397206,41744.0,41742.0,0.00108948]
[1641717651146,0.28156969,41743.0,41742.0,0.00108948]
[1641717651348,0.28956969,41743.0,41742.0,0.00108948]
[1641717651546,0.008,41743.0,41742.0,0.00108948]
[1641717651946,0.008,41743.0,41742.0,0.00148296]
[1641717652146,0.008,41743.0,41742.0,0.00108948]
[1641717652545,0.01205504,41743.0,41742.0,0.00108948]
[1641717652746,0.00405504,41743.0,41742.0,0.00108948]
[1641717653145,0.00405504,41743.0,41742.0,0.00107259]
[1641717653546,0.01405504,41743.0,41742.0,0.00107259]
[1641717654702,0.01405504,41743.0,41742.0,0.28857237]
[1641717654901,0.01405504,41743.0,41742.0,0.68938882]
[1641717655301,0.00405504,41743.0,41742.0,0.68901223]
[1641717655801,0.00405504,41743.0,41742.0,0.68901203]
[1641717658004,0.00405504,41743.0,41742.0,0.59901203]
[1641717658854,0.00405504,41743.0,41742.0,0.59901201]
[1641717659249,0.00405504,41743.0,41742.0,0.38532109]
[1641717659649,0.00405504,41743.0,41742.0,0.48532109]
[1641717660051,0.00405504,41743.0,41742.0,0.4853211]
[1641717660250,0.00405504,41743.0,41742.0,0.4353211]
[1641717661053,0.00405504,41743.0,41742.0,0.3853211]
[1641717662596,0.00405504,41743.0,41742.0,0.67222969]
[1641717663498,0.00405504,41743.0,41742.0,0.77222969]
[1641717665800,0.00405504,41743.0,41742.0,0.4853211]
[1641717669155,0.00405504,41743.0,41742.0,0.3853211]
[1641717670800,0.00405504,41743.0,41742.0,0.4853211]
[1641717671000,0.00405504,41743.0,41742.0,0.4856982]
[1641717671203,0.00405504,41743.0,41742.0,0.4853211]
[1641717671801,0.00405504,41743.0,41742.0,0.76907561]
[1641717672404,0.00405504,41743.0,41742.0,0.86907561]
[1641717673447,0.00405504,41743.0,41742.0,0.89707561]
[1641717674853,0.00405504,41743.0,41742.0,0.86907561]
[1641717675458,0.00405504,41743.0,41742.0,0.91907561]
[1641717676358,0.00405504,41743.0,41742.0,0.90407561]
[1641717676757,0.00405504,41743.0,41742.0,0.85407561]
[1641717677599,0.00324319,41743.0,41742.0,0.4323211]
[1641717678794,0.00324319,41743.0,41742.0,0.3853211]
[1641717679594,0.00424319,41743.0,41742.0,0.3853211]
[1641717681283,0.00324319,41743.0,41742.0,0.0003771]
[1641717681484,0.00524319,41743.0,41742.0,0.0003771]
[1641717681982,0.00524319,41743.0,41742.0,0.0007542]
[1641717682182,0.00524319,41743.0,41742.0,0.0003771]
[1641717682783,0.00324319,41743.0,41742.0,0.0003771]
[1641717683583,0.01824319,41743.0,41742.0,0.0003771]
[1641717684804,0.00324319,41743.0,41742.0,0.3853211]
[1641717685505,0.00624319,41743.0,41742.0,0.3853211]
[1641717687408,0.00324319,41743.0,41742.0,0.3853211]
[1641717687608,0.00724319,41743.0,41742.0,0.3853211]
[1641717688854,0.00324319,41743.0,41742.0,0.3853211]
[1641717689055,0.00324319,41743.0,41742.0,0.0003771]
[1641717689457,0.00924319,41743.0,41742.0,0.0003771]
[1641717690859,0.00324319,41743.0,41742.0,0.0003771]
[1641717691558,0.00924319,41743.0,41742.0,0.0003771]
[1641717692799,0.00324319,41743.0,41742.0,0.0003771]
[1641717693597,0.00624319,41743.0,41742.0,0.0003771]
[1641717694400,0.299913,41744.0,41743.0,0.01945275]
[1641717695200,0.299913,41744.0,41743.0,0.01982983]
[1641717695603,0.323913,41744.0,41743.0,0.01982983]
[1641717696747,0.299913,41744.0,41743.0,0.01982983]
[1641717697647,0.3282586,41744.0,41743.0,0.02020691]
[1641717697848,0.3282586,41744.0,41743.0,0.01982983]
[1641717698648,0.3282586,41744.0,41743.0,0.01982248]
[1641717698849,0.3032586,41744.0,41743.0,0.01982248]
[1641717699549,0.3322586,41744.0,41743.0,0.01982248]
[1641717700804,0.3032586,41744.0,41743.0,0.01982248]
[1641717701506,0.3302586,41744.0,41743.0,0.01982248]
[1641717701906,0.3302586,41744.0,41743.0,0.01982995]
[1641717702907,0.3032586,41744.0,41743.0,0.01982995]
[1641717703551,0.3282586,41744.0,41743.0,0.01982995]
[1641717704549,0.3387406,41744.0,41743.0,0.01982995]
[1641717704750,0.3137406,41744.0,41743.0,0.01982995]
[1641717705551,0.3227406,41744.0,41743.0,0.01982995]
[1641717705752,0.3122586,41744.0,41743.0,0.01982995]
[1641717706351,0.3122586,41744.0,41743.0,0.01982983]
[1641717706750,0.3032586,41744.0,41743.0,0.01982983]
[1641717707500,0.3122586,41744.0,41743.0,0.01982983]
[1641717708303,0.3227406,41744.0,41743.0,0.01982983]
[1641717708705,0.3032586,41744.0,41743.0,0.01982983]
[1641717709504,0.3072586,41744.0,41743.0,0.01982983]
[1641717710408,0.2473456,41744.0,41743.0,0.01982983]
[1641717710805,0.2433456,41744.0,41743.0,0.01982983]
[1641717711049,0.2433456,41744.0,41743.0,0.40477383]
[1641717711649,0.2503456,41744.0,41743.0,0.40477383]
[1641717711851,0.2503456,41744.0,41743.0,0.45477383]
[1641717712052,0.2503456,41744.0,41743.0,0.50257383]
[1641717712251,0.2503456,41744.0,41743.0,0.45257383]
[1641717712953,0.2433456,41744.0,41743.0,0.45257383]
[1641717713553,0.0887893,41744.0,41743.0,0.56857383]
[1641717713753,0.9948,41758.0,41744.0,0.65]
[1641717713953,1.4228,41759.0,41751.0,0.0598903]
[1641717714150,1.4228,41759.0,41752.0,0.0478]
[1641717714151,0.3006,41759.0,41752.0,0.0478]
[1641717714351,0.98772726,41760.0,41755.0,0.27010484]
[1641717714352,0.00043626,41760.0,41755.0,0.27010484]
[1641717714699,0.00043626,41760.0,41755.0,0.41790484]
[1641717714902,0.00043626,41760.0,41755.0,0.38098567]
[1641717715303,0.00043641,41760.0,41755.0,0.38098567]
[1641717715702,0.00043641,41760.0,41755.0,0.38798567]
[1641717716099,0.00043641,41760.0,41757.0,0.059885]
[1641717716301,0.00043641,41760.0,41758.0,0.05988505]
[1641717717301,0.00043643,41760.0,41758.0,0.05988505]
[1641717717504,0.00043643,41760.0,41758.0,0.06388505]
[1641717717703,0.00310712,41759.0,41758.0,0.06388505]
[1641717718750,0.00310712,41759.0,41758.0,0.05988505]
[1641717719550,0.00310712,41759.0,41758.0,0.06788505]
[1641717720350,0.00310712,41759.0,41758.0,0.11788505]
[1641717720552,0.00310712,41759.0,41758.0,0.16788505]
[1641717720951,0.00310712,41759.0,41758.0,0.15988505]
[1641717721152,0.24310712,41759.0,41758.0,0.15988505]
[1641717721351,0.24310712,41759.0,41758.0,0.54482905]
[1641717721553,0.24310712,41759.0,41758.0,0.55782905]
[1641717722403,0.23810712,41759.0,41758.0,0.55782905]
[1641717722603,0.24121424,41759.0,41758.0,0.55782905]
[1641717722803,0.24121424,41759.0,41758.0,0.84170294]
[1641717723207,0.24121424,41759.0,41758.0,0.54482905]
[1641717723604,0.24121424,41759.0,41758.0,0.55782905]
[1641717724905,0.24121424,41759.0,41758.0,0.54482905]
[1641717725707,0.24121424,41759.0,41758.0,0.55782905]
[1641717726758,0.24121424,41759.0,41758.0,0.50782905]
[1641717726959,0.24121424,41759.0,41758.0,0.44482905]
[1641717727158,0.24121424,41759.0,41758.0,0.49482905]
[1641717727659,0.24121424,41759.0,41758.0,0.50782905]
[1641717728361,0.24121424,41759.0,41758.0,0.78857533]
[1641717728759,0.24121424,41759.0,41758.0,0.77557533]
[1641717728959,0.24121424,41759.0,41758.0,0.49482905]
[1641717729461,0.24121424,41759.0,41758.0,0.10988505]
[1641717729697,0.24121424,41759.0,41758.0,0.12188505]
[1641717730904,0.24121424,41759.0,41758.0,0.10988505]
[1641717731104,0.24121424,41759.0,41758.0,0.15768505]
[1641717731702,0.24121424,41759.0,41758.0,0.16968505]
[1641717731904,0.24121424,41759.0,41758.0,0.21968505]
[1641717732804,0.24121424,41759.0,41758.0,0.20768505]
[1641717733644,0.24121424,41759.0,41758.0,0.21868505]
[1641717734948,0.24121424,41759.0,41758.0,0.15768505]
[1641717735747,0.24121424,41759.0,41758.0,0.16868505]
[1641717737048,0.24121424,41759.0,41758.0,0.15768505]
[1641717737701,0.24121424,41759.0,41758.0,0.16868505]
[1641717738802,0.24121424,41759.0,41758.0,0.15768505]
[1641717739607,0.24121424,41759.0,41758.0,0.16868505]
[1641717740308,0.24121424,41759.0,41756.0,0.10922505]
[1641717740508,0.24121424,41759.0,41757.0,0.0478]
[1641717741262,0.52912038,41759.0,41757.0,0.0478]
[1641717741660,0.24121424,41759.0,41757.0,0.117686]
[1641717741860,0.24121424,41759.0,41757.0,0.177571]
[1641717742061,0.24121424,41759.0,41757.0,0.227571]
[1641717742661,0.00336601,41758.0,41757.0,0.227571]
[1641717742861,0.00336601,41758.0,41757.0,0.167686]
[1641717743061,0.00336601,41758.0,41757.0,0.157686]
[1641717743662,0.00336601,41758.0,41757.0,0.167686]
[1641717744899,0.00336601,41758.0,41757.0,0.157686]
[1641717745700,0.00336601,41758.0,41757.0,0.166686]
[1641717747005,0.00336601,41758.0,41757.0,0.157686]
[1641717747603,0.00336601,41758.0,41757.0,0.166686]
[1641717747803,0.00336601,41758.0,41757.0,0.17078147]
[1641717748003,0.00336601,41758.0,41757.0,0.11089547]
[1641717748854,0.00336601,41758.0,41757.0,0.10189547]
[1641717749655,0.00336601,41758.0,41757.0,0.10989547]
[1641717750855,0.00336601,41758.0,41757.0,0.10189547]
[1641717751661,0.00336601,41758.0,41757.0,0.11089547]
[1641717752303,0.00336601,41758.0,41757.0,0.49583947]
[1641717752506,0.00336601,41758.0,41757.0,0.59583947]
[1641717752904,0.00336601,41758.0,41757.0,0.58683947]
[1641717753705,0.00336601,41758.0,41757.0,0.59883947]
[1641717754905,0.00336601,41758.0,41757.0,0.58683947]
[1641717755505,0.00336601,41758.0,41757.0,0.86599722]
[1641717755706,0.00336601,41758.0,41757.0,0.87699722]
[1641717756152,0.00336601,41758.0,41757.0,0.59783947]
[1641717756850,0.00336601,41758.0,41757.0,0.58683947]
[1641717757649,0.00336601,41758.0,41757.0,0.59783947]
[1641717758950,0.00336601,41758.0,41757.0,0.58683947]
[1641717759813,0.00336601,41758.0,41757.0,0.59883947]
[1641717761013,0.00336601,41758.0,41757.0,0.58683947]
[1641717761916,0.00336601,41758.0,41757.0,0.59883947]
[1641717762913,0.00336601,41758.0,41757.0,0.58683947]
[1641717763752,0.00336601,41758.0,41757.0,0.59883947]
[1641717764956,0.00336601,41758.0,41757.0,0.58683947]
[1641717765853,0.00336601,41758.0,41757.0,0.59783947]
[1641717767062,0.00336601,41758.0,41757.0,0.58683947]
[1641717767504,0.28104756,41758.0,41757.0,0.48683947]
[1641717767706,0.28104756,41758.0,41757.0,0.11489547]
[1641717767904,0.28104756,41758.0,41757.0,0.06709547]
[1641717768304,0.28104756,41758.0,41757.0,0.01709547]
[1641717768705,0.29152956,41758.0,41757.0,0.01709547]
[1641717768904,0.29071638,41758.0,41757.0,0.01709547]
[1641717769707,0.30171638,41758.0,41757.0,0.01609547]
[1641717770957,0.29071638,41758.0,41757.0,0.00409547]
[1641717771856,0.31671638,41758.0,41757.0,0.00409547]
[1641717772659,0.31757307,41758.0,41754.0,0.06398654]
[1641717772859,0.30709107,41758.0,41754.0,0.06398654]
[1641717773059,0.059897,41756.0,41754.0,0.06398654]
[1641717773859,0.008,41756.0,41754.0,0.13488254]
[1641717774908,0.008,41756.0,41754.0,0.19477722]
[1641717775205,0.059896,41757.0,41754.0,0.18377722]
[1641717775504,0.059896,41757.0,41754.0,0.06398654]
[1641717775706,0.069896,41757.0,41754.0,0.07398654]
[1641717777006,0.059896,41757.0,41754.0,0.06398654]
[1641717777705,0.0034094,41756.0,41754.0,0.06398654]
[1641717777907,0.0034094,41756.0,41754.0,0.07198654]
[1641717778758,0.0034094,41756.0,41754.0,0.19177762]
[1641717779157,0.0034094,41756.0,41754.0,0.18377762]
[1641717779661,0.0034094,41756.0,41755.0,0.370094]
[1641717779862,0.0094094,41756.0,41755.0,0.370094]
[1641717781062,0.0034094,41756.0,41755.0,0.370094]
[1641717781662,0.0034094,41756.0,41755.0,0.470094]
[1641717781860,0.0034094,41756.0,41755.0,0.488094]
[1641717782060,0.0034094,41756.0,41755.0,0.388094]
[1641717782713,0.24151652,41759.0,41755.0,0.388094]
[1641717783108,0.24151652,41759.0,41755.0,0.470094]
[1641717783410,0.24151652,41759.0,41755.0,0.70133156]
[1641717783609,0.24151652,41759.0,41755.0,0.80133156]
[1641717783811,0.24151652,41759.0,41755.0,0.58734828]
[1641717784208,0.23651652,41759.0,41755.0,0.58734828]
[1641717785009,0.23651652,41759.0,41756.0,0.107684]
[1641717785212,0.23651652,41759.0,41757.0,0.11977107]
[1641717785510,0.23651652,41759.0,41757.0,0.21977107]
[1641717785955,0.23651652,41759.0,41757.0,0.23077107]
[1641717786254,0.23651652,41759.0,41757.0,0.28565707]
[1641717787254,0.23651652,41759.0,41757.0,0.18565707]
[1641717787456,0.22916218,41759.0,41758.0,0.05]
[1641717787657,0.22916218,41759.0,41758.0,0.05409634]
[1641717787658,0.22575278,41759.0,41758.0,0.05409634]
[1641717787859,0.22575278,41759.0,41758.0,0.10409634]
[1641717788055,0.21713649,41759.0,41758.0,0.10409634]
[1641717788558,0.21012134,41759.0,41758.0,0.00409634]
[1641717789803,0.21012134,41759.0,41758.0,0.01609634]
[1641717791305,0.21012134,41759.0,41758.0,0.00409634]
[1641717791906,0.21012134,41759.0,41758.0,0.01609634]
[1641717792606,0.2135898,41759.0,41758.0,0.01609634]
[1641717792807,0.2135898,41759.0,41758.0,0.06609634]
[1641717793010,0.2135898,41759.0,41758.0,0.46314524]
[1641717793208,0.2135898,41759.0,41758.0,0.5380189]
[1641717793462,0.2135898,41759.0,41758.0,0.6380189]
[1641717793863,0.2135898,41759.0,41758.0,0.6500189]
[1641717794166,0.2135898,41759.0,41758.0,1.07408316]
[1641717794963,0.2135898,41759.0,41758.0,1.38091813]
[1641717795163,0.2135898,41759.0,41758.0,1.36891813]
[1641717795864,0.2135898,41759.0,41758.0,1.38391813]
[1641717796665,0.1944498,41759.0,41758.0,1.38391813]
[1641717797066,0.1944498,41759.0,41758.0,1.36891813]
[1641717797720,0.1944498,41759.0,41758.0,1.06208316]
[1641717797921,0.1944498,41759.0,41758.0,0.6560189]
[1641717798120,0.1944498,41759.0,41758.0,0.93031249]
[1641717798822,0.1944498,41759.0,41758.0,0.5560189]
[1641717799022,0.1944498,41759.0,41758.0,0.5380189]
[1641717799220,0.1944498,41759.0,41758.0,0.81259314]
[1641717799822,0.1944498,41759.0,41758.0,0.83259314]
[1641717800023,0.1944498,41759.0,41758.0,0.6580189]
[1641717800322,0.1944498,41759.0,41758.0,0.9327905]
[1641717801250,0.1944498,41759.0,41758.0,0.9127905]
[1641717801850,0.1944498,41759.0,41758.0,0.9307905]
[1641717803153,0.1944498,41759.0,41758.0,0.9127905]
[1641717803353,0.1753098,41759.0,41758.0,0.9127905]
[1641717803955,0.1753098,41759.0,41758.0,0.9337905]
[1641717805209,0.1561698,41759.0,41758.0,0.9127905]
[1641717805907,0.1561698,41759.0,41758.0,0.9427905]
[1641717806114,0.1561698,41759.0,41758.0,0.6680189]
[1641717806507,0.1561698,41759.0,41758.0,0.93773407]
[1641717807510,0.1561698,41759.0,41758.0,0.90773407]
[1641717807709,0.1561698,41759.0,41758.0,0.90929406]
[1641717807909,0.1561698,41759.0,41758.0,0.93629406]
[1641717809158,0.1561698,41759.0,41758.0,0.90929406]
[1641717809858,0.1561698,41759.0,41758.0,0.93729406]
[1641717811060,0.1561698,41759.0,41758.0,0.90929406]
[1641717811263,0.1561698,41759.0,41758.0,0.63957889]
[1641717811860,0.1561698,41759.0,41758.0,0.94009912]
[1641717812507,0.1561698,41759.0,41758.0,0.66757889]
[1641717813106,0.1561698,41759.0,41758.0,0.63957889]
[1641717813909,0.1561698,41759.0,41758.0,0.66157889]
[1641717815107,0.1561698,41759.0,41758.0,0.63957889]
[1641717815307,0.1561698,41759.0,41758.0,0.90851597]
[1641717815968,0.1561698,41759.0,41758.0,0.93151597]
[1641717816664,0.1561698,41759.0,41758.0,0.66131633]
[1641717816861,0.1561698,41759.0,41758.0,0.46131633]
[1641717817061,0.1561698,41759.0,41758.0,0.43831633]
[1641717817862,0.1561698,41759.0,41758.0,0.45931633]
[1641717818762,0.1561698,41759.0,41758.0,0.51919833]
[1641717819164,0.1561698,41759.0,41758.0,0.69819833]
[1641717819563,0.1561698,41759.0,41758.0,0.43831633]
[1641717820018,0.1561698,41759.0,41758.0,0.45831633]
[1641717820616,0.39125544,41759.0,41758.0,0.45831633]
[1641717821220,0.39125544,41759.0,41758.0,0.43831633]
[1641717822018,0.39125544,41759.0,41758.0,0.45831633]
[1641717823219,0.39125544,41759.0,41758.0,0.43831633]
[1641717823762,0.39125544,41759.0,41758.0,0.05345633]
[1641717823962,0.39125544,41759.0,41758.0,0.07445633]
[1641717824367,0.39125544,41759.0,41758.0,0.02665633]
[1641717824566,0.41660044,41759.0,41758.0,0.02665633]
[1641717825165,0.41660044,41759.0,41758.0,0.00565633]
[1641717826169,0.41660044,41759.0,41758.0,0.01465633]
[1641717827316,0.41660044,41759.0,41758.0,0.00565633]
[1641717827919,0.42760044,41759.0,41758.0,0.00565633]
[1641717829116,0.41660044,41759.0,41758.0,0.00565633]
[1641717829918,0.42760044,41759.0,41758.0,0.00565633]
[1641717830717,0.51149044,41759.0,41758.0,0.00565633]
[1641717831164,0.50049044,41759.0,41758.0,0.00565633]
[1641717832070,0.51149044,41759.0,41758.0,0.00565633]
[1641717833167,0.50049044,41759.0,41758.0,0.00565633]
[1641717833969,0.51249044,41759.0,41758.0,0.00565633]
[1641717834709,0.51249044,41759.0,41750.0,0.00037786]
[1641717834907,0.059904,41753.0,41750.0,0.00037786]
[1641717835607,0.27319817,41752.0,41750.0,0.00037786]
[1641717836010,0.27319817,41752.0,41750.0,0.04237786]
[1641717836209,0.27319817,41752.0,41750.0,0.04237792]
[1641717836411,0.39771419,41751.0,41750.0,0.04237792]
[1641717836810,0.42305919,41751.0,41750.0,0.04237792]
[1641717837215,0.42305919,41751.0,41750.0,0.00075481]
[1641717837412,0.42305919,41751.0,41750.0,0.00037689]
[1641717837612,0.45385227,41751.0,41750.0,0.00037689]
[1641717837812,0.47884227,41751.0,41750.0,0.00037689]
[1641717838011,0.49984227,41751.0,41750.0,0.00037689]
[1641717839270,0.49984227,41751.0,41743.0,0.01945275]
[1641717839271,0.00123776,41747.0,41743.0,0.01945275]
[1641717839470,0.0012434,41745.0,41743.0,0.01945275]
[1641717839669,0.025345,41744.0,41743.0,0.01945275]
[1641717839870,0.36674468,41744.0,41743.0,0.01945275]
[1641717840272,0.70059198,41744.0,41743.0,0.01945275]
[1641717840471,0.76051298,41744.0,41743.0,0.01945275]
[1641717840671,1.14140681,41744.0,41743.0,0.01945275]
[1641717841469,1.44150009,41744.0,41743.0,0.01945275]
[1641717841671,1.14140681,41744.0,41743.0,0.01983456]
[1641717842075,0.80600713,41744.0,41743.0,0.01983456]
[1641717842316,0.78066213,41744.0,41743.0,0.01983456]
[1641717842522,0.78644473,41744.0,41743.0,0.01983456]
[1641717842715,0.72652373,41744.0,41743.0,0.01983456]
[1641717843317,0.72052373,41744.0,41743.0,0.01983456]
[1641717843917,0.72652373,41744.0,41743.0,0.01983456]